{"text_format":"1","workbook":"xlsx","n_sheets":2,"sheets":["ACR SDG Contribution Report","Database"],"not_rendered":{"charts":0,"images":1,"macros":0,"external_links":0,"defined_names":0,"comments":0,"pivot_tables":0},"unopened":[],"bounds":{"document_bytes":16777216,"sheet_cells":100000,"rows_first":2000,"rows_last":500,"rows_between":2000,"halvings":0,"cell_chars":16384,"cell_head_chars":4096},"cells_cut":0,"cells_raw":0,"read":"whole","date_system":"1900"}

{"sheet":"ACR SDG Contribution Report","index":0,"n_rows":27,"n_cols":4,"rows_kept":27,"cut":false,"hidden":false,"merged":[[27,0,33,3],[0,0,0,6],[4,0,4,3],[5,0,5,1],[7,0,7,1],[14,0,14,2],[13,2,13,3],[6,1,6,3],[7,2,7,3],[8,1,8,3],[9,1,9,3],[10,1,10,3],[11,1,11,3],[12,1,12,3],[13,0,13,1],[22,0,22,2],[17,3,18,3],[15,0,15,2],[16,0,16,2],[17,0,18,2],[26,0,26,3],[21,0,21,2],[19,0,19,2],[25,0,25,2],[24,0,24,2],[23,0,23,2],[20,0,20,2]]}
["Sustainable Development Goals (SDGs) Contribution Report"]
[]
["AFOLU PROJECTS"]
["\n"]
["This report, as required in the ACR Standard v8.0, provides a qualitative assessment of the positive impacts the project is delivering to the United Nations Sustainable Development Goals (SDGs). The identified contributions are based on the standardized ACR SDG Contributions Reporting Tool."]
["ACR Project #:"]
[]
["Project Name:"]
["1.","Select the applicable ACR project type from the drop-down menu below. This will auto populate the UN SDG targets to which project implementation is likely to positively contribute, directly or indirectly, as conservatively identified in the ACR SDG Contributions Reporting Tool. "]
["2.","If your project positively contributes to any additional SDG targets (i.e., the \"conditional\" direct and indirect targets identified in the ACR SDG Contributions Reporting Tool), please include those in the extra rows provided for Direct and Indirect impacts. "]
["3.","Provide a description of how the project contributes to each of the SDG targets identified."]
["4.","Where the SDG objectives of the host country are relevant and such is feasible, provide information on how the project activity is consistent with the SDG objectives of the host country."]
["5.","Hide any unused rows, save the completed template as a PDF, and upload it to the ACR Registry with the GHG Project Plan."]
["Project Type:",null,"Choose project type from drop-down"]
["DIRECT POSITIVE IMPACT TO SDG TARGETS",null,null,"DESCRIPTION OF PROJECT'S CONTRIBUTION(S) TO SDG TARGET"]
[{"$f":"IFERROR(VLOOKUP(C14,Table2[#All],2,FALSE),\" \")","v":""}]
[{"$f":"IFERROR(VLOOKUP(C14,Table2[#All],3,FALSE),\" \")","v":""}]
[{"$f":"IFERROR(VLOOKUP(C14,Table2[#All],4,FALSE),\" \")","v":""}]
[]
[]
[]
[]
[]
["INDIRECT POSITIVE IMPACT TO SDG TARGETS",null,null,"DESCRIPTION OF PROJECT'S CONTRIBUTION(S) TO SDG TARGET"]
[{"$f":"IFERROR(VLOOKUP(C14,Table2[#All],5,FALSE),\" \")","v":""}]
[{"$f":"IFERROR(VLOOKUP(C14,Table2[#All],6,FALSE),\" \")","v":""}]
["INFORMATION ON HOW THE PROJECT ACTIVITY IS CONSISTENT WITH THE SDG OBJECTIVES OF THE HOST COUNTRY, WHERE THE SDG OBJECTIVES ARE RELEVANT, AND SUCH IS FEASIBLE."]

{"sheet":"Database","index":1,"n_rows":7,"n_cols":8,"rows_kept":7,"cut":false,"hidden":true,"merged":[]}
["Select methodology","First Direct SDG","Second Direct SDG","Third Direct SDG","First Indirect SDG","Second Indirect SDG","Fifth Indirect SDG","Sixth Indirect SDG"]
["Choose project type from drop-down",{"$f":"\"\"","v":""},{"$f":"\"\"","v":""},{"$f":"\"\"","v":""},{"$f":"\"\"","v":""},{"$f":"\"\"","v":""},{"$f":"\" \"","v":" "},{"$f":"\" \"","v":" "}]
["Afforestation / Reforestation","SDG 6: Ensure availability and sustainable management of water and sanitation for all\n\n6.6  By 2020, protect and restore water-related ecosystems, including mountains, forests, wetlands, rivers, aquifers and lakes.","SDG 13: Take urgent action to combat climate change and its impacts\n\n13.1  Strengthen resilience and adaptive capacity to climate-related hazards and natural disasters in all countries. \n\n13.2  Integrate climate change measures into national policies, strategies and planning","SDG 15: Protect, restore and promote sustainable use of terrestrial ecosystems, sustainably manage forests, combat desertification, and halt and reverse land degradation and halt biodiversity loss\n\n15.1  By 2020, ensure the conservation, restoration and sustainable use of terrestrial and inland freshwater ecosystems and their services, in particular forests, wetlands, mountains and drylands, in line with obligations under international agreements.  \n                                                                         \n15.2  By 2020, promote the implementation of sustainable management of all types of forests, halt deforestation, restore degraded forests and substantially increase afforestation and reforestation globally \n\n15.3  By 2030, combat desertification, restore degraded land and soil, including land affected by desertification, drought and floods, and strive to achieve a land degradation-neutral world\n\n15.5  Take urgent and significant action to reduce the degradation of natural habitats, halt the loss of biodiversity and, by 2020, protect and prevent the extinction of threatened species\n\n15.8  By 2020, introduce measures to prevent the introduction and significantly reduce the impact of invasive alien species on land and water ecosystems and control or eradicate the priority species\n","SDG 3: Ensure healthy lives and promote well-being for all at all ages\n\n3.9  By 2030, substantially reduce the number of deaths and illnesses from hazardous chemicals and air, water and soil pollution and contamination.  ",{"$f":" \" \"","v":" "},null,{"$f":"\" \"","v":" "}]
["Improved Forest Management","SDG 6: Ensure availability and sustainable management of water and sanitation for all\n\n6.6  By 2020, protect and restore water-related ecosystems, including mountains, forests, wetlands, rivers, aquifers and lakes.","SDG 13: Take urgent action to combat climate change and its impacts\n\n13.1  Strengthen resilience and adaptive capacity to climate-related hazards and natural disasters in all countries. \n\n13.2  Integrate climate change measures into national policies, strategies, and planning.","SDG 15: Protect, restore and promote sustainable use of terrestrial ecosystems, sustainably manage forests, combat desertification, and halt and reverse land degradation and halt biodiversity loss\n\n15.1  By 2020, ensure the conservation, restoration and sustainable use of terrestrial and inland freshwater ecosystems and their services, in particular forests, wetlands, mountains and drylands, in line with obligations under international agreements.                                                                           \n\n15.2  By 2020, promote the implementation of sustainable management of all types of forests, halt deforestation, restore degraded forests and substantially increase afforestation and reforestation globally. \n\n15.5  Take urgent and significant action to reduce the degradation of natural habitats, halt the loss of biodiversity and, by 2020, protect and prevent the extinction of threatened species.\n","SDG 3: Ensure healthy lives and promote well-being for all at all ages\n\n3.9  By 2030, substantially reduce the number of deaths and illnesses from hazardous chemicals and air, water and soil pollution and contamination.  ",{"$f":" \" \"","v":" "},{"$f":"\" \"","v":" "},{"$f":"\" \"","v":" "}]
["Active Conservation of Forestland","SDG 6: Ensure availability and sustainable management of water and sanitation for all\n\n6.6  By 2020, protect and restore water-related ecosystems, including mountains, forests, wetlands, rivers, aquifers and lakes.","SDG 13: Take urgent action to combat climate change and its impacts\n\n13.1  Strengthen resilience and adaptive capacity to climate-related hazards and natural disasters in all countries. \n\n13.2  Integrate climate change measures into national policies, strategies and planning","SDG 15: Protect, restore and promote sustainable use of terrestrial ecosystems, sustainably manage forests, combat desertification, and halt and reverse land degradation and halt biodiversity loss\n\n15.1  By 2020, ensure the conservation, restoration and sustainable use of terrestrial and inland freshwater ecosystems and their services, in particular forests, wetlands, mountains and drylands, in line with obligations under international agreements.  \n                                                                         \n15.2  By 2020, promote the implementation of sustainable management of all types of forests, halt deforestation, restore degraded forests and substantially increase afforestation and reforestation globally. \n\n15.5  Take urgent and significant action to reduce the degradation of natural habitats, halt the loss of biodiversity and, by 2020, protect and prevent the extinction of threatened species.\n","SDG 3: Ensure healthy lives and promote well-being for all at all ages\n\n3.9  By 2030, substantially reduce the number of deaths and illnesses from hazardous chemicals and air, water and soil pollution and contamination.  ",{"$f":" \" \"","v":" "},{"$f":"\" \"","v":" "},{"$f":"\" \"","v":" "}]
["Avoided Conversion of Grasslands to Croplands","SDG 6: Ensure availability and sustainable management of water and sanitation for all \n\n6.6  By 2020, protect and restore water-related ecosystems, including mountains, forests, wetlands, rivers, aquifers and lakes.","SDG 13: Take urgent action to combat climate change and its impacts\n\n13.1  Strengthen resilience and adaptive capacity to climate-related hazards and natural disasters in all countries. \n\n13.2  Integrate climate change measures into national policies, strategies and planning","SDG 15: Protect, restore and promote sustainable use of terrestrial ecosystems, sustainably manage forests, combat desertification, and halt and reverse land degradation and halt biodiversity loss\n\n15.5  Take urgent and significant action to reduce the degradation of natural habitats, halt the loss of biodiversity and, by 2020, protect and prevent the extinction of threatened species.\n","SDG 3: Ensure healthy lives and promote well-being for all at all ages\n\n3.9  By 2030, substantially reduce the number of deaths and illnesses from hazardous chemicals and air, water and soil pollution and contamination.  ",{"$f":"\"\"","v":""},{"$f":"\" \"","v":" "},{"$f":"\" \"","v":" "}]
["Wetlands / Pocosin Restoration","SDG 6: Ensure availability and sustainable management of water and sanitation for all\n\n 6.6  By 2020, protect and restore water-related ecosystems, including mountains, forests, wetlands, rivers, aquifers and lakes.","SDG 13: Take urgent action to combat climate change and its impacts\n\n13.1  Strengthen resilience and adaptive capacity to climate-related hazards and natural disasters in all countries. \n\n13.2  Integrate climate change measures into national policies, strategies and planning.","SDG 15: Protect, restore and promote sustainable use of terrestrial ecosystems, sustainably manage forests, combat desertification, and halt and reverse land degradation and halt biodiversity loss\n\n15.1  By 2020, ensure the conservation, restoration and sustainable use of terrestrial and inland freshwater ecosystems and their services, in particular forests, wetlands, mountains and drylands, in line with obligations under international agreements.                                                                            \n\n15.3  By 2030, combat desertification, restore degraded land and soil, including land affected by desertification, drought and floods, and strive to achieve a land degradation-neutral world.\n\n15.5  Take urgent and significant action to reduce the degradation of natural habitats, halt the loss of biodiversity and, by 2020, protect and prevent the extinction of threatened species.\n\n15.8  By 2020, introduce measures to prevent the introduction and significantly reduce the impact of invasive alien species on land and water ecosystems and control or eradicate the priority species.","SDG 3: Ensure healthy lives and promote well-being for all at all ages\n\n3.9  By 2030, substantially reduce the number of deaths and illnesses from hazardous chemicals and air, water and soil pollution and contamination.  ",{"$f":" \" \"","v":" "},{"$f":"\" \"","v":" "},{"$f":"\" \"","v":" "}]